fUSD/lending_fUSD_20240527
["ID","MTS","AMOUNT","RATE_DAILY","PERIOD"]
[328018041,1716773526250,-1400.41,0.00030136,4]
[328018042,1716773526266,-500.0,0.00030136,4]
[328018043,1716773526282,-215.44744212,0.00030136,4]
[328018044,1716773526296,-1255.06,0.00030136,4]
[328018045,1716773526311,-500.0,0.00030136,4]
[328018046,1716773526327,-500.0,0.00030136,4]
[328018047,1716773526342,-500.0,0.00030136,4]
[328018048,1716773526356,-2187.31,0.00030136,4]
[328018049,1716773526370,-1098.66,0.00030136,4]
[328018050,1716773526387,-919.68,0.00030136,4]
[328018051,1716773526403,-2106.55,0.00030136,4]
[328018052,1716773526417,-2336.3,0.00030136,4]
[328018053,1716773526431,-1415.86,0.00030136,4]
[328018054,1716773526446,-1637.74,0.00030136,4]
[328018055,1716773526461,-609.84,0.00030136,4]
[328018056,1716773526475,-500.0,0.00030136,4]
[328018057,1716773526491,-912.06,0.00030136,4]
[328018058,1716773526506,-500.0,0.00030136,4]
[328018059,1716773526520,-1275.52,0.00030136,4]
[328018060,1716773526536,-500.0,0.00030136,4]
[328018061,1716773526551,-1558.22,0.00030136,4]
[328018062,1716773526565,-500.0,0.00030136,4]
[328018063,1716773526580,-500.0,0.00030136,4]
[328018064,1716773526594,-500.0,0.00030136,4]
[328018065,1716773526609,-3246.02,0.00030136,4]
[328018066,1716773526623,-1094.9,0.00030136,4]
[328018067,1716773526638,-500.0,0.00030136,4]
[328018068,1716773526654,-537.01,0.00030136,4]
[328018069,1716773526667,-515.5175332,0.00030136,4]
[328018070,1716773526682,-999.12,0.00030136,4]
[328018071,1716773526696,-593.71,0.00030136,4]
[328018072,1716773526711,-500.0,0.00030136,4]
[328018073,1716773526725,-510.96,0.00030136,4]
[328018074,1716773526740,-545.26133743,0.00030136,4]
[328018075,1716773526754,-1146.79,0.00030136,4]
[328018076,1716773526768,-1156.39,0.00030136,4]
[328018077,1716773526783,-500.0,0.00030136,4]
[328018078,1716773526797,-460.26109198,0.00030136,4]
[328018079,1716773526810,-1494.94,0.00030136,4]
[328018080,1716773526824,-3014.19,0.00030136,4]
[328018081,1716773526841,-517.64906493,0.00030136,4]
[328018082,1716773526856,-766.93,0.00030136,4]
[328018083,1716773526871,-500.0,0.00030136,4]
[328018084,1716773526888,-500.0,0.00030136,4]
[328018085,1716773526903,-1271.17,0.00030136,4]
[328018086,1716773526919,-500.0,0.00030136,4]
[328018087,1716773526935,-500.0,0.00030136,4]
[328018088,1716773526948,-518.35584701,0.00030136,4]
[328018089,1716773526962,-500.0,0.00030136,4]
[328018090,1716773526976,-7504.54,0.00030136,4]
[328018091,1716773526990,-500.0,0.00030136,4]
[328018092,1716773527005,-500.0,0.00030136,4]
[328018093,1716773527019,-500.0,0.00030136,4]
[328018094,1716773527034,-155.35812121,0.00030246,7]
[328018095,1716773527049,-3268.60593297,0.00030354,2]
[328018096,1716773527062,-478.25921213,0.00030379,4]
[328018097,1716773527085,-28347.623,0.0003038,4]
[328018098,1716773527101,-28347.624,0.0003038,4]
[328018099,1716773527115,-28347.624,0.0003038,4]
[328018100,1716773527130,-28347.624,0.0003038,4]
[328018101,1716773527144,-28347.624,0.0003038,4]
[328018102,1716773527159,-1005.22,0.00030385,2]
[328018103,1716773527175,-6751.0699297,0.00030389,2]
[328018104,1716773527188,-1629.685624,0.00030389,2]
[328018105,1716773527212,-984.1305143,0.00030389,2]
[328018106,1716773527227,-1529.625028,0.00030389,2]
[328018107,1716773527242,-183.11044323,0.0003041,4]
[328018108,1716773527257,-500.0,0.0003041,4]
[328018109,1716773527271,-695.36,0.0003041,4]
[328018110,1716773527285,-500.0,0.0003041,4]
[328018111,1716773527300,-531.34,0.0003041,4]
[328018112,1716773527314,-623.18,0.0003041,4]
[328018113,1716773527329,-500.0,0.0003041,4]
[328018114,1716773527344,-736.3,0.0003041,4]
[328018115,1716773527359,-609.26,0.0003041,4]
[328018116,1716773527374,-200.08,0.0003041,4]
[328018117,1716773527388,-500.0,0.0003041,4]
[328018118,1716773527403,-500.0,0.0003041,4]
[328018119,1716773527417,-566.75,0.0003041,4]
[328018120,1716773527430,-500.0,0.0003041,4]
[328018121,1716773527446,-500.0,0.0003041,4]
[328018122,1716773527461,-500.0,0.0003041,4]
[328018123,1716773527480,-500.0,0.0003041,4]
[328018124,1716773527494,-500.0,0.0003041,4]
[328018125,1716773527509,-763.53,0.0003041,4]
[328018126,1716773527525,-500.0,0.0003041,4]
[328018127,1716773527539,-500.0,0.0003041,4]
[328018128,1716773527554,-500.0,0.0003041,4]
[328018129,1716773527567,-500.0,0.0003041,4]
[328018130,1716773527583,-500.0,0.0003041,4]
[328018131,1716773527598,-500.0,0.0003041,4]
[328018132,1716773527613,-500.0,0.0003041,4]
[328018133,1716773527628,-500.0,0.0003041,4]
[328018134,1716773527643,-500.0,0.0003041,4]
[328018135,1716773527659,-500.0,0.0003041,4]
[328018136,1716773527674,-500.0,0.0003041,4]
[328018137,1716773527688,-500.0,0.0003041,4]
[328018138,1716773527934,-500.0,0.0003041,4]
[328018139,1716773527944,-500.0,0.0003041,4]
[328018140,1716773527954,-500.0,0.0003041,4]
[328018141,1716773527963,-500.0,0.0003041,4]
[328018142,1716773527974,-202.08,0.0003041,4]
[328018143,1716773527983,-500.0,0.0003041,4]
[328018144,1716773527992,-502.0,0.0003041,4]
[328018145,1716773528002,-500.0,0.0003041,4]
[328018146,1716773528012,-500.0,0.0003041,4]
[328018147,1716773528022,-500.0,0.0003041,4]
[328018148,1716773528032,-500.0,0.0003041,4]
[328018149,1716773528041,-509.3,0.0003041,4]
[328018150,1716773528051,-500.0,0.0003041,4]
[328018151,1716773528061,-500.0,0.0003041,4]
[328018152,1716773528070,-500.0,0.0003041,4]
[328018153,1716773528080,-500.0,0.0003041,4]
[328018154,1716773528089,-500.0,0.0003041,4]
[328018155,1716773528099,-500.0,0.0003041,4]
[328018156,1716773528108,-618.09,0.0003041,4]
[328018157,1716773528118,-500.0,0.0003041,4]
[328018158,1716773528127,-500.0,0.0003041,4]
[328018159,1716773528138,-500.0,0.0003041,4]
[328018160,1716773528149,-547.06,0.0003041,4]
[328018161,1716773528159,-500.0,0.0003041,4]
[328018162,1716773528169,-500.0,0.0003041,4]
[328018163,1716773528178,-500.0,0.0003041,4]
[328018164,1716773528187,-598.28,0.0003041,4]
[328018165,1716773528196,-589.42,0.0003041,4]
[328018166,1716773528206,-500.0,0.0003041,4]
[328018167,1716773528215,-500.0,0.0003041,4]
[328018168,1716773528225,-500.0,0.0003041,4]
[328018169,1716773528234,-292.41,0.0003041,4]
[328018170,1716773528243,-500.0,0.0003041,4]
[328018171,1716773528253,-526.56,0.0003041,4]
[328018172,1716773528262,-500.0,0.0003041,4]
[328018173,1716773528272,-500.0,0.0003041,4]
[328018174,1716773528282,-386.77,0.0003041,4]
[328018175,1716773528291,-500.0,0.0003041,4]
[328018176,1716773528300,-525.03,0.0003041,4]
[328018177,1716773528310,-500.0,0.0003041,4]
[328018178,1716773528320,-360.84,0.0003041,4]
[328018179,1716773528330,-500.0,0.0003041,4]
[328018180,1716773528339,-539.9,0.0003041,4]
[328018181,1716773528348,-657.09,0.0003041,4]
[328018182,1716773528358,-500.0,0.0003041,4]
[328018183,1716773528368,-500.0,0.0003041,4]
[328018184,1716773528377,-500.0,0.0003041,4]
[328018185,1716773528386,-500.0,0.0003041,4]
[328018186,1716773528395,-500.0,0.0003041,4]
[328018187,1716773528407,-750.33,0.0003041,4]
[328018188,1716773528416,-500.0,0.0003041,4]
[328018189,1716773528425,-603.04,0.0003041,4]
[328018190,1716773528434,-500.0,0.0003041,4]
[328018191,1716773528443,-500.0,0.0003041,4]
[328018192,1716773528453,-743.01,0.0003041,4]
[328018193,1716773528462,-500.0,0.0003041,4]
[328018194,1716773528471,-500.0,0.0003041,4]
[328018195,1716773528480,-500.0,0.0003041,4]
[328018196,1716773528489,-500.0,0.0003041,4]
[328018197,1716773528499,-613.12,0.0003041,4]
[328018198,1716773528508,-264.92,0.0003041,4]
[328018199,1716773528517,-500.0,0.0003041,4]
[328018200,1716773528526,-500.0,0.0003041,4]
[328018201,1716773528535,-500.0,0.0003041,4]
[328018202,1716773528544,-384.38,0.0003041,4]
[328018203,1716773528553,-674.79,0.0003041,4]
[328018204,1716773528563,-500.0,0.0003041,4]
[328018205,1716773528573,-500.0,0.0003041,4]
[328018206,1716773528582,-500.0,0.0003041,4]
[328018207,1716773528592,-637.71,0.0003041,4]
[328018208,1716773528601,-500.0,0.0003041,4]
[328018209,1716773528611,-500.0,0.0003041,4]
[328018210,1716773528621,-500.0,0.0003041,4]
[328018211,1716773528630,-610.35,0.0003041,4]
[328018212,1716773528640,-565.63,0.0003041,4]
[328018213,1716773528650,-500.0,0.0003041,4]
[328018214,1716773528659,-500.0,0.0003041,4]
[328018215,1716773528668,-500.0,0.0003041,4]
[328018216,1716773528677,-385.04,0.0003041,4]
[328018217,1716773528686,-1112.41,0.0003041,4]
[328018218,1716773528695,-500.0,0.0003041,4]
[328018219,1716773528704,-518.47,0.0003041,4]
[328018220,1716773528714,-500.0,0.0003041,4]
[328018221,1716773528724,-820.24,0.0003041,4]
[328018222,1716773528733,-500.0,0.0003041,4]
[328018223,1716773528743,-500.0,0.0003041,4]
[328018224,1716773528752,-500.0,0.0003041,4]
[328018225,1716773528762,-813.92,0.0003041,4]
[328018226,1716773528772,-500.0,0.0003041,4]
[328018227,1716773528781,-500.0,0.0003041,4]
[328018228,1716773528790,-500.0,0.0003041,4]
[328018229,1716773528800,-500.0,0.0003041,4]
[328018230,1716773528809,-1037.2,0.0003041,4]
[328018231,1716773528819,-500.0,0.0003041,4]
[328018232,1716773528828,-1002.02,0.0003041,4]
[328018233,1716773528840,-1135.33,0.0003041,4]
[328018234,1716773528850,-500.0,0.0003041,4]
[328018235,1716773528859,-696.41,0.0003041,4]
[328018236,1716773528869,-526.63,0.0003041,4]
[328018237,1716773528878,-500.0,0.0003041,4]
[328018238,1716773528891,-659.81,0.0003041,4]
[328018239,1716773528904,-566.26,0.0003041,4]
[328018240,1716773528917,-724.95,0.0003041,4]
[328018241,1716773528939,-715.24,0.0003041,4]
[328018242,1716773528949,-515.04,0.0003041,4]
[328018243,1716773528958,-500.0,0.0003041,4]
[328018244,1716773528968,-500.0,0.0003041,4]
[328018245,1716773528977,-537.11,0.0003041,4]
[328018246,1716773528987,-1115.92,0.0003041,4]
[328018247,1716773528996,-514.34,0.0003041,4]
[328018248,1716773529006,-500.0,0.0003041,4]
[328018249,1716773529015,-500.0,0.0003041,4]
[328018250,1716773529025,-500.0,0.0003041,4]
[328018251,1716773529035,-500.0,0.0003041,4]
[328018252,1716773529044,-500.0,0.0003041,4]
[328018253,1716773529053,-1161.05,0.0003041,4]
[328018254,1716773529063,-500.0,0.0003041,4]
[328018255,1716773529072,-657.79,0.0003041,4]
[328018256,1716773529081,-500.0,0.0003041,4]
[328018257,1716773529092,-500.0,0.0003041,4]
[328018258,1716773529101,-513.43,0.0003041,4]
[328018259,1716773529110,-563.52,0.0003041,4]
[328018260,1716773529120,-553.3,0.0003041,4]
[328018261,1716773529129,-500.0,0.0003041,4]
[328018262,1716773529138,-590.37,0.0003041,4]
[328018263,1716773529150,-500.0,0.0003041,4]
[328018264,1716773529159,-556.76,0.0003041,4]
[328018265,1716773529170,-500.0,0.0003041,4]
[328018266,1716773529180,-500.0,0.0003041,4]
[328018267,1716773529189,-500.0,0.0003041,4]
[328018268,1716773529199,-518.38,0.0003041,4]
[328018269,1716773529209,-500.0,0.0003041,4]
[328018270,1716773529218,-677.81,0.0003041,4]
[328018271,1716773529228,-640.38,0.0003041,4]
[328018272,1716773529237,-500.0,0.0003041,4]
[328018273,1716773529247,-500.0,0.0003041,4]
[328018274,1716773529256,-689.4,0.0003041,4]
[328018275,1716773529267,-500.0,0.0003041,4]
[328018276,1716773529277,-500.0,0.0003041,4]
[328018277,1716773529287,-566.57,0.0003041,4]
[328018278,1716773529296,-1225.47,0.0003041,4]
[328018279,1716773529306,-500.0,0.0003041,4]
[328018280,1716773529316,-652.09,0.0003041,4]
[328018281,1716773529325,-921.84,0.0003041,4]
[328018282,1716773529335,-500.0,0.0003041,4]
[328018283,1716773529344,-796.9,0.0003041,4]
[328018284,1716773529354,-531.92,0.0003041,4]
[328018285,1716773529363,-500.0,0.0003041,4]
[328018286,1716773529373,-500.0,0.0003041,4]
[328018287,1716773529383,-911.01,0.0003041,4]
[328018288,1716773529392,-576.28,0.0003041,4]
[328018289,1716773529403,-1333.61,0.0003041,4]
[328018290,1716773529412,-500.0,0.0003041,4]
[328018291,1716773529421,-641.37,0.0003041,4]
[328018292,1716773529431,-500.0,0.0003041,4]
[328018293,1716773529440,-500.0,0.0003041,4]
[328018294,1716773529450,-500.0,0.0003041,4]
[328018295,1716773529459,-514.48,0.0003041,4]
[328018296,1716773529471,-500.0,0.0003041,4]
[328018297,1716773529480,-1275.39,0.0003041,4]
[328018298,1716773529490,-500.0,0.0003041,4]
[328018299,1716773529500,-1100.98,0.0003041,4]
[328018300,1716773529509,-500.0,0.0003041,4]
[328018301,1716773529519,-500.0,0.0003041,4]
[328018302,1716773529529,-500.0,0.0003041,4]
[328018303,1716773529538,-500.0,0.0003041,4]
[328018304,1716773529547,-690.87,0.0003041,4]
[328018305,1716773529557,-500.0,0.0003041,4]
[328018306,1716773529567,-1641.89,0.0003041,4]
[328018307,1716773529576,-500.0,0.0003041,4]
[328018308,1716773529586,-500.0,0.0003041,4]
[328018309,1716773529596,-500.0,0.0003041,4]
[328018310,1716773529606,-559.82,0.0003041,4]
[328018311,1716773529616,-500.0,0.0003041,4]
[328018312,1716773529626,-500.0,0.0003041,4]
[328018313,1716773529636,-500.0,0.0003041,4]
[328018314,1716773529645,-500.0,0.0003041,4]
[328018315,1716773529656,-500.0,0.0003041,4]
[328018316,1716773529666,-935.12,0.0003041,4]
[328018317,1716773529676,-381.04518529,0.0003041,4]
[328018318,1716773529685,-500.0,0.0003041,4]
[328018319,1716773529695,-677.22,0.0003041,4]
[328018320,1716773529704,-1013.07,0.0003041,4]
[328018321,1716773529714,-500.0,0.0003041,4]
[328018322,1716773529724,-552.18,0.0003041,4]
[328018323,1716773529733,-500.0,0.0003041,4]
[328018324,1716773529743,-861.85,0.0003041,4]
[328018325,1716773529752,-858.84,0.0003041,4]
[328018326,1716773529761,-500.0,0.0003041,4]
[328018327,1716773529771,-500.0,0.0003041,4]
[328018328,1716773529780,-500.0,0.0003041,4]
[328018329,1716773529789,-500.0,0.0003041,4]
[328018330,1716773529798,-811.31,0.0003041,4]
[328018331,1716773529807,-549.95,0.0003041,4]
[328018332,1716773529816,-500.0,0.0003041,4]
[328018333,1716773529826,-500.0,0.0003041,4]
[328018334,1716773529838,-500.0,0.0003041,4]
[328018335,1716773529848,-620.92,0.0003041,4]
[328018336,1716773529858,-742.45,0.0003041,4]
[328018337,1716773529867,-500.0,0.0003041,4]
[328018338,1716773529878,-500.0,0.0003041,4]
[328018339,1716773529888,-500.0,0.0003041,4]
[328018340,1716773529897,-500.0,0.0003041,4]
[328018341,1716773529907,-500.0,0.0003041,4]
[328018342,1716773529917,-500.0,0.0003041,4]
[328018343,1716773529928,-611.76,0.0003041,4]
[328018344,1716773529938,-500.0,0.0003041,4]
[328018345,1716773529948,-500.0,0.0003041,4]
[328018346,1716773529957,-1162.24,0.0003041,4]
[328018347,1716773529966,-500.0,0.0003041,4]
[328018348,1716773529976,-500.0,0.0003041,4]
[328018349,1716773529985,-803.05,0.0003041,4]
[328018350,1716773529994,-722.78,0.0003041,4]
[328018351,1716773530004,-500.0,0.0003041,4]
[328018352,1716773530014,-500.0,0.0003041,4]
[328018353,1716773530024,-958.44,0.0003041,4]
[328018354,1716773530033,-500.0,0.0003041,4]
[328018355,1716773530043,-665.19,0.0003041,4]
[328018356,1716773530052,-500.0,0.0003041,4]
[328018357,1716773530062,-500.0,0.0003041,4]
[328018358,1716773530072,-500.0,0.0003041,4]
[328018359,1716773530082,-500.0,0.0003041,4]
[328018360,1716773530092,-742.73,0.0003041,4]
[328018361,1716773530101,-500.0,0.0003041,4]
[328018362,1716773530111,-1148.79,0.0003041,4]
[328018363,1716773530120,-500.0,0.0003041,4]
[328018364,1716773530130,-684.31,0.0003041,4]
[328018365,1716773530140,-868.94,0.0003041,4]
[328018366,1716773530149,-436.77248744,0.0003041,4]
[328018367,1716773530158,-500.0,0.0003041,4]
[328018368,1716773530168,-555.76,0.0003041,4]
[328018369,1716773530178,-500.0,0.0003041,4]
[328018370,1716773530187,-500.0,0.0003041,4]
[328018371,1716773530197,-1021.87,0.0003041,4]
[328018372,1716773530206,-500.0,0.0003041,4]
[328018373,1716773530215,-771.51,0.0003041,4]
[328018374,1716773530225,-500.0,0.0003041,4]
[328018375,1716773530235,-500.0,0.0003041,4]
[328018376,1716773530244,-500.0,0.0003041,4]
[328018377,1716773530254,-1127.03,0.0003041,4]
[328018378,1716773530263,-500.0,0.0003041,4]
[328018379,1716773530274,-568.94,0.0003041,4]
[328018380,1716773530283,-792.94,0.0003041,4]
[328018381,1716773530293,-500.0,0.0003041,4]
[328018382,1716773530302,-1040.28,0.0003041,4]
[328018383,1716773530312,-500.0,0.0003041,4]
[328018384,1716773530322,-565.33,0.0003041,4]
[328018385,1716773530332,-621.99,0.0003041,4]
[328018386,1716773530342,-248.11,0.0003041,4]
[328018387,1716773530351,-500.0,0.0003041,4]
[328018388,1716773530362,-500.0,0.0003041,4]
[328018389,1716773530372,-590.75,0.0003041,4]
[328018390,1716773530382,-641.85,0.0003041,4]
[328018391,1716773530391,-849.19,0.0003041,4]
[328018392,1716773530402,-500.0,0.0003041,4]
[328018393,1716773530412,-889.12,0.0003041,4]
[328018394,1716773530422,-530.16,0.0003041,4]
[328018395,1716773530432,-536.89,0.0003041,4]
[328018396,1716773530442,-500.0,0.0003041,4]
[328018397,1716773530452,-1259.29,0.0003041,4]
[328018398,1716773530461,-500.0,0.0003041,4]
[328018399,1716773530471,-500.0,0.0003041,4]
[328018400,1716773530480,-500.0,0.0003041,4]
[328018401,1716773530653,-500.0,0.0003041,4]
[328018402,1716773530663,-776.42,0.0003041,4]
[328018403,1716773530674,-568.42,0.0003041,4]
[328018404,1716773530684,-1677.95,0.0003041,4]
[328018405,1716773530694,-646.9,0.0003041,4]
[328018406,1716773530703,-660.3,0.0003041,4]
[328018407,1716773530713,-537.3,0.0003041,4]
[328018408,1716773530722,-500.0,0.0003041,4]
[328018409,1716773530731,-500.0,0.0003041,4]
[328018410,1716773530741,-2614.52,0.0003041,4]
[328018411,1716773530751,-579.16,0.0003041,4]
[328018412,1716773530760,-1322.14,0.0003041,4]
[328018413,1716773530770,-969.5,0.0003041,4]
[328018414,1716773530779,-500.0,0.0003041,4]
[328018415,1716773530789,-609.69,0.0003041,4]
[328018416,1716773530798,-500.0,0.0003041,4]
[328018417,1716773530808,-500.0,0.0003041,4]
[328018418,1716773530817,-506.32,0.0003041,4]
[328018419,1716773530827,-500.0,0.0003041,4]
[328018420,1716773530839,-1140.34,0.0003041,4]
[328018421,1716773530850,-1339.71,0.0003041,4]
[328018422,1716773530859,-859.67,0.0003041,4]
[328018423,1716773530869,-673.21,0.0003041,4]
[328018424,1716773530879,-7686.08,0.0003041,4]
[328018425,1716773530888,-1172.21,0.0003041,4]
[328018426,1716773530899,-500.0,0.0003041,4]
[328018427,1716773530908,-1287.8,0.0003041,4]
[328018428,1716773530920,-500.0,0.0003041,4]
[328018429,1716773530929,-500.0,0.0003041,4]
[328018430,1716773530938,-1037.45,0.0003041,4]
[328018431,1716773530948,-900.49,0.0003041,4]
[328018432,1716773530957,-507.12,0.0003041,4]
[328018433,1716773530967,-735.66,0.0003041,4]
[328018434,1716773530976,-500.0,0.0003041,4]
[328018435,1716773530986,-478.4155935,0.0003041,4]
[328018436,1716773530995,-500.0,0.0003041,4]
[328018437,1716773531005,-2771.58,0.0003041,4]
[328018438,1716773531016,-500.0,0.0003041,4]
[328018439,1716773531027,-500.0,0.0003041,4]
[328018440,1716773531036,-3172.21,0.0003041,4]
[328018441,1716773531046,-1674.57,0.0003041,4]
[328018442,1716773531055,-500.0,0.0003041,4]
[328018443,1716773531065,-500.0,0.0003041,4]
[328018444,1716773531075,-2746.18,0.0003041,4]
[328018445,1716773531086,-527.2,0.0003041,4]
[328018446,1716773531095,-500.0,0.0003041,4]
[328018447,1716773531105,-291.44684922,0.0003041,4]
[328018448,1716773531114,-6205.95,0.0003041,4]
[328018449,1716773531124,-892.56,0.0003041,4]
[328018450,1716773531134,-706.36,0.0003041,4]
[328018451,1716773531144,-500.0,0.0003041,4]
[328018452,1716773531155,-1206.85,0.0003041,4]
[328018453,1716773531164,-2601.64,0.0003041,4]
[328018454,1716773531173,-627.83,0.0003041,4]
[328018455,1716773531183,-500.0,0.0003041,4]
[328018456,1716773531193,-500.0,0.0003041,4]
[328018457,1716773531203,-500.0,0.0003041,4]
[328018458,1716773531212,-906.32,0.0003041,4]
[328018459,1716773531221,-500.0,0.0003041,4]
[328018460,1716773531230,-1301.17,0.0003041,4]
[328018461,1716773531239,-1348.74,0.0003041,4]
[328018462,1716773531249,-1356.31,0.0003041,4]
[328018463,1716773531258,-690.34,0.0003041,4]
[328018464,1716773531268,-500.0,0.0003041,4]
[328018465,1716773531278,-500.0,0.0003041,4]
[328018466,1716773531287,-500.0,0.0003041,4]
[328018467,1716773531297,-2143.83,0.0003041,4]
[328018468,1716773531306,-2383.33,0.0003041,4]
[328018469,1716773531316,-500.0,0.0003041,4]
[328018470,1716773531325,-500.0,0.0003041,4]
[328018471,1716773531334,-500.0,0.0003041,4]
[328018472,1716773531343,-500.0,0.0003041,4]
[328018473,1716773531352,-1576.4,0.0003041,4]
[328018474,1716773531363,-1713.46,0.0003041,4]
[328018475,1716773531372,-786.1,0.0003041,4]
[328018476,1716773531382,-1532.05,0.0003041,4]
[328018477,1716773531391,-3324.33,0.0003041,4]
[328018478,1716773531400,-410.01,0.0003041,4]
[328018479,1716773531410,-1197.25,0.0003041,4]
[328018480,1716773531419,-908.76,0.0003041,4]
[328018481,1716773531428,-606.23,0.0003041,4]
[328018482,1716773531438,-500.0,0.0003041,4]
[328018483,1716773531447,-622.76,0.0003041,4]
[328018484,1716773531457,-881.49,0.0003041,4]
[328018485,1716773531467,-500.0,0.0003041,4]
[328018486,1716773531476,-760.48,0.0003041,4]
[328018487,1716773531486,-284.8172431,0.0003041,4]
[328018488,1716773531496,-1016.57,0.0003041,4]
[328018489,1716773531505,-10252.41,0.0003041,4]
[328018490,1716773531515,-984.73,0.0003041,4]
[328018491,1716773531524,-601.05,0.0003041,4]
[328018492,1716773531533,-879.73,0.0003041,4]
[328018493,1716773531543,-500.0,0.0003041,4]
[328018494,1716773531552,-1296.31,0.0003041,4]
[328018495,1716773531561,-913.5,0.0003041,4]
[328018496,1716773531570,-500.0,0.0003041,4]
[328018497,1716773531579,-627.73,0.0003041,4]
[328018498,1716773531591,-12959.85,0.0003041,4]
[328018499,1716773531600,-1152.84,0.0003041,4]
[328018500,1716773531610,-500.0,0.0003041,4]
[328018501,1716773531619,-1257.91,0.0003041,4]
[328018502,1716773531629,-500.0,0.0003041,4]
[328018503,1716773531638,-1837.75,0.0003041,4]
[328018504,1716773531647,-500.0,0.0003041,4]
[328018505,1716773531658,-2024.08,0.0003041,4]
[328018506,1716773531667,-500.0,0.0003041,4]
[328018507,1716773531676,-500.0,0.0003041,4]
[328018508,1716773531686,-1234.35,0.0003041,4]
[328018509,1716773531695,-602.61,0.0003041,4]
[328018510,1716773531704,-1687.26,0.0003041,4]
[328018511,1716773531714,-500.0,0.0003041,4]
[328018512,1716773531723,-500.0,0.0003041,4]
[328018513,1716773531732,-178.6,0.0003041,4]
[328018514,1716773531742,-500.0,0.0003041,4]
[328018515,1716773531751,-500.0,0.0003041,4]
[328018516,1716773531760,-869.6,0.0003041,4]
[328018517,1716773531769,-572.54,0.0003041,4]
[328018518,1716773531779,-500.0,0.0003041,4]
[328018519,1716773531789,-1160.09,0.0003041,4]
[328018520,1716773531798,-915.48,0.0003041,4]
[328018521,1716773531807,-894.59,0.0003041,4]
[328018522,1716773531816,-500.0,0.0003041,4]
[328018523,1716773531826,-1359.95,0.0003041,4]
[328018524,1716773531836,-777.55,0.0003041,4]
[328018525,1716773531848,-500.0,0.0003041,4]
[328018526,1716773531857,-955.96,0.0003041,4]
[328018527,1716773531866,-500.0,0.0003041,4]
[328018528,1716773531875,-590.73,0.0003041,4]
[328018529,1716773531885,-500.0,0.0003041,4]
[328018530,1716773531894,-824.44,0.0003041,4]
[328018531,1716773531904,-1899.17,0.0003041,4]
[328018532,1716773531915,-500.0,0.0003041,4]
[328018533,1716773531924,-500.0,0.0003041,4]
[328018534,1716773531937,-709.3,0.0003041,4]
[328018535,1716773531952,-1522.47,0.0003041,4]
[328018536,1716773531965,-726.34,0.0003041,4]
[328018537,1716773531975,-500.0,0.0003041,4]
[328018538,1716773531985,-1111.07,0.0003041,4]
[328018539,1716773532005,-6862.17,0.0003041,4]
[328018540,1716773532015,-1636.35,0.0003041,4]